Workbook

Sheet Tabelle1
B2: Runde | C2: Münze | D2: Punkte | E2: Basis
D3: 100 | H3: =H4+H5 -> 2774 | O3: =O4+O5 -> 100
B4: 1 | C4: =RANDBETWEEN(1,2) -> 2 | D4: =IF(C4=1, D3+(D3*$L$4), D3-(D3*$L$5)) -> 60 | E4: 100 | G4: Häufigkeit 1 | H4: =COUNTIF($C$4:$C$2777,1) -> 1384 | I4: =H4/H3 -> 0.4989185292 | K4: Gewinnrate bei 1 | L4: 0.5 | N4: Häufigkeit 1 (nach 100 Runden) | O4: =COUNTIF($C$4:$C$103,1) -> 47 | P4: =O4/O3 -> 0.47
B5: 2 | C5: 2 | D5: =IF(C5=1, D4+(D4*$L$4), D4-(D4*$L$5)) -> 36 | E5: 100 | G5: Häufigkeit 2 | H5: =COUNTIF($C$4:$C$2777,2) -> 1390 | I5: =H5/H3 -> 0.5010814708 | K5: Verlustrate bei 2 | L5: 0.4 | N5: Häufigkeit 2 (nach 100 Runden) | O5: =COUNTIF($C$4:$C$103,2) -> 53 | P5: =O5/O3 -> 0.53
B6: 3 | C6: 2 | D6: 21.6 | E6: 100
B7: 4 | C7: 2 | D7: 12.96 | E7: 100 | G7: Punkte nach 100 Runden | I7: =D103 -> 0.03298416133
B8: 5 | C8: 1 | D8: 19.44 | E8: 100
B9: 6 | C9: 2 | D9: 11.664 | E9: 100
B10: 7 | C10: 1 | D10: 17.496 | E10: 100
B11: 8 | C11: 2 | D11: 10.4976 | E11: 100
B12: 9 | C12: 2 | D12: 6.29856 | E12: 100
B13: 10 | C13: 1 | D13: 9.44784 | E13: 100
B14: 11 | C14: 2 | D14: 5.668704 | E14: 100
B15: 12 | C15: 1 | D15: 8.503056 | E15: 100
B16: 13 | C16: 2 | D16: 5.1018336 | E16: 100
B17: 14 | C17: 2 | D17: 3.06110016 | E17: 100
B18: 15 | C18: 2 | D18: 1.836660096 | E18: 100
B19: 16 | C19: 1 | D19: 2.754990144 | E19: 100
B20: 17 | C20: 1 | D20: 4.132485216 | E20: 100
B21: 18 | C21: 2 | D21: 2.47949113 | E21: 100
B22: 19 | C22: 1 | D22: 3.719236694 | E22: 100
B23: 20 | C23: 2 | D23: 2.231542017 | E23: 100
B24: 21 | C24: 1 | D24: 3.347313025 | E24: 100
B25: 22 | C25: 1 | D25: 5.020969537 | E25: 100
B26: 23 | C26: 2 | D26: 3.012581722 | E26: 100
B27: 24 | C27: 1 | D27: 4.518872584 | E27: 100
B28: 25 | C28: 2 | D28: 2.71132355 | E28: 100
B29: 26 | C29: 1 | D29: 4.066985325 | E29: 100
B30: 27 | C30: 2 | D30: 2.440191195 | E30: 100
B31: 28 | C31: 1 | D31: 3.660286793 | E31: 100
B32: 29 | C32: 2 | D32: 2.196172076 | E32: 100
B33: 30 | C33: 1 | D33: 3.294258114 | E33: 100
B34: 31 | C34: 1 | D34: 4.94138717 | E34: 100
B35: 32 | C35: 2 | D35: 2.964832302 | E35: 100
B36: 33 | C36: 1 | D36: 4.447248453 | E36: 100
B37: 34 | C37: 2 | D37: 2.668349072 | E37: 100
B38: 35 | C38: 2 | D38: 1.601009443 | E38: 100
B39: 36 | C39: 2 | D39: 0.9606056659 | E39: 100
B40: 37 | C40: 2 | D40: 0.5763633995 | E40: 100
B41: 38 | C41: 2 | D41: 0.3458180397 | E41: 100
B42: 39 | C42: 2 | D42: 0.2074908238 | E42: 100
B43: 40 | C43: 1 | D43: 0.3112362358 | E43: 100
B44: 41 | C44: 2 | D44: 0.1867417415 | E44: 100
B45: 42 | C45: 1 | D45: 0.2801126122 | E45: 100
B46: 43 | C46: 2 | D46: 0.1680675673 | E46: 100
B47: 44 | C47: 1 | D47: 0.252101351 | E47: 100
B48: 45 | C48: 2 | D48: 0.1512608106 | E48: 100
B49: 46 | C49: 1 | D49: 0.2268912159 | E49: 100
B50: 47 | C50: 1 | D50: 0.3403368238 | E50: 100
B51: 48 | C51: 1 | D51: 0.5105052357 | E51: 100
B52: 49 | C52: 2 | D52: 0.3063031414 | E52: 100
B53: 50 | C53: 1 | D53: 0.4594547121 | E53: 100
B54: 51 | C54: 1 | D54: 0.6891820682 | E54: 100
B55: 52 | C55: 1 | D55: 1.033773102 | E55: 100
B56: 53 | C56: 2 | D56: 0.6202638614 | E56: 100
B57: 54 | C57: 2 | D57: 0.3721583168 | E57: 100
B58: 55 | C58: 2 | D58: 0.2232949901 | E58: 100
B59: 56 | C59: 1 | D59: 0.3349424851 | E59: 100
B60: 57 | C60: 1 | D60: 0.5024137277 | E60: 100
B61: 58 | C61: 1 | D61: 0.7536205916 | E61: 100
B62: 59 | C62: 1 | D62: 1.130430887 | E62: 100
B63: 60 | C63: 1 | D63: 1.695646331 | E63: 100
B64: 61 | C64: 2 | D64: 1.017387799 | E64: 100
B65: 62 | C65: 2 | D65: 0.6104326792 | E65: 100
B66: 63 | C66: 2 | D66: 0.3662596075 | E66: 100
B67: 64 | C67: 1 | D67: 0.5493894112 | E67: 100
B68: 65 | C68: 1 | D68: 0.8240841169 | E68: 100
B69: 66 | C69: =RANDBETWEEN(1,2) -> 1 | D69: =IF(C69=1, D68+(D68*$L$4), D68-(D68*$L$5)) -> 1.236126175 | E69: 100
B70: 67 | C70: 1 | D70: 1.854189263 | E70: 100
B71: 68 | C71: 2 | D71: 1.112513558 | E71: 100
B72: 69 | C72: 1 | D72: 1.668770337 | E72: 100
B73: 70 | C73: 2 | D73: 1.001262202 | E73: 100
B74: 71 | C74: 1 | D74: 1.501893303 | E74: 100
B75: 72 | C75: 2 | D75: 0.9011359818 | E75: 100
B76: 73 | C76: 2 | D76: 0.5406815891 | E76: 100
B77: 74 | C77: 2 | D77: 0.3244089534 | E77: 100
B78: 75 | C78: 2 | D78: 0.1946453721 | E78: 100
B79: 76 | C79: 1 | D79: 0.2919680581 | E79: 100
B80: 77 | C80: 1 | D80: 0.4379520872 | E80: 100
B81: 78 | C81: 1 | D81: 0.6569281307 | E81: 100
B82: 79 | C82: 2 | D82: 0.3941568784 | E82: 100
B83: 80 | C83: 2 | D83: 0.2364941271 | E83: 100
B84: 81 | C84: 1 | D84: 0.3547411906 | E84: 100
B85: 82 | C85: 1 | D85: 0.5321117859 | E85: 100
B86: 83 | C86: 2 | D86: 0.3192670715 | E86: 100
B87: 84 | C87: 1 | D87: 0.4789006073 | E87: 100
B88: 85 | C88: 1 | D88: 0.718350911 | E88: 100
B89: 86 | C89: 2 | D89: 0.4310105466 | E89: 100
B90: 87 | C90: 2 | D90: 0.2586063279 | E90: 100
B91: 88 | C91: 2 | D91: 0.1551637968 | E91: 100
B92: 89 | C92: 2 | D92: 0.09309827806 | E92: 100
B93: 90 | C93: 2 | D93: 0.05585896684 | E93: 100
B94: 91 | C94: 1 | D94: 0.08378845025 | E94: 100
B95: 92 | C95: 1 | D95: 0.1256826754 | E95: 100
B96: 93 | C96: 1 | D96: 0.1885240131 | E96: 100
B97: 94 | C97: 1 | D97: 0.2827860196 | E97: 100
B98: 95 | C98: 2 | D98: 0.1696716118 | E98: 100
B99: 96 | C99: 2 | D99: 0.1018029671 | E99: 100
B100: 97 | C100: 2 | D100: 0.06108178023 | E100: 100
B101: 98 | C101: 2 | D101: 0.03664906814 | E101: 100
B102: 99 | C102: 1 | D102: 0.05497360221 | E102: 100
B103: 100 | C103: 2 | D103: 0.03298416133 | E103: 100
B104: 101 | C104: 1 | D104: 0.04947624199 | E104: 100
B105: 102 | C105: 1 | D105: 0.07421436299 | E105: 100
B106: 103 | C106: 2 | D106: 0.04452861779 | E106: 100
B107: 104 | C107: 1 | D107: 0.06679292669 | E107: 100
B108: 105 | C108: 2 | D108: 0.04007575601 | E108: 100
B109: 106 | C109: 2 | D109: 0.02404545361 | E109: 100
B110: 107 | C110: 1 | D110: 0.03606818041 | E110: 100
B111: 108 | C111: 1 | D111: 0.05410227062 | E111: 100
B112: 109 | C112: 2 | D112: 0.03246136237 | E112: 100
B113: 110 | C113: 1 | D113: 0.04869204355 | E113: 100
B114: 111 | C114: 2 | D114: 0.02921522613 | E114: 100
B115: 112 | C115: 1 | D115: 0.0438228392 | E115: 100
B116: 113 | C116: 1 | D116: 0.0657342588 | E116: 100
B117: 114 | C117: 2 | D117: 0.03944055528 | E117: 100
B118: 115 | C118: 1 | D118: 0.05916083292 | E118: 100
B119: 116 | C119: 1 | D119: 0.08874124938 | E119: 100
B120: 117 | C120: 1 | D120: 0.1331118741 | E120: 100
B121: 118 | C121: 1 | D121: 0.1996678111 | E121: 100
B122: 119 | C122: 2 | D122: 0.1198006867 | E122: 100
B123: 120 | C123: 1 | D123: 0.17970103 | E123: 100
B124: 121 | C124: 2 | D124: 0.107820618 | E124: 100
B125: 122 | C125: 2 | D125: 0.0646923708 | E125: 100
B126: 123 | C126: 1 | D126: 0.0970385562 | E126: 100
B127: 124 | C127: 1 | D127: 0.1455578343 | E127: 100
B128: 125 | C128: 2 | D128: 0.08733470058 | E128: 100
B129: 126 | C129: 2 | D129: 0.05240082035 | E129: 100
B130: 127 | C130: 1 | D130: 0.07860123052 | E130: 100
B131: 128 | C131: 2 | D131: 0.04716073831 | E131: 100
B132: 129 | C132: 2 | D132: 0.02829644299 | E132: 100
B133: 130 | C133: =RANDBETWEEN(1,2) -> 2 | D133: =IF(C133=1, D132+(D132*$L$4), D132-(D132*$L$5)) -> 0.01697786579 | E133: 100
B134: 131 | C134: 2 | D134: 0.01018671948 | E134: 100
B135: 132 | C135: 2 | D135: 0.006112031685 | E135: 100
B136: 133 | C136: 1 | D136: 0.009168047528 | E136: 100
B137: 134 | C137: 2 | D137: 0.005500828517 | E137: 100
B138: 135 | C138: 2 | D138: 0.00330049711 | E138: 100
B139: 136 | C139: 1 | D139: 0.004950745665 | E139: 100
B140: 137 | C140: 1 | D140: 0.007426118497 | E140: 100
B141: 138 | C141: 1 | D141: 0.01113917775 | E141: 100
B142: 139 | C142: 1 | D142: 0.01670876662 | E142: 100
B143: 140 | C143: 2 | D143: 0.01002525997 | E143: 100
B144: 141 | C144: 2 | D144: 0.006015155983 | E144: 100
B145: 142 | C145: 1 | D145: 0.009022733974 | E145: 100
B146: 143 | C146: 1 | D146: 0.01353410096 | E146: 100
B147: 144 | C147: 1 | D147: 0.02030115144 | E147: 100
B148: 145 | C148: 1 | D148: 0.03045172716 | E148: 100
B149: 146 | C149: 2 | D149: 0.0182710363 | E149: 100
B150: 147 | C150: 2 | D150: 0.01096262178 | E150: 100
B151: 148 | C151: 2 | D151: 0.006577573067 | E151: 100
B152: 149 | C152: 2 | D152: 0.00394654384 | E152: 100
B153: 150 | C153: 2 | D153: 0.002367926304 | E153: 100
B154: 151 | C154: 1 | D154: 0.003551889456 | E154: 100
B155: 152 | C155: 2 | D155: 0.002131133674 | E155: 100
B156: 153 | C156: 2 | D156: 0.001278680204 | E156: 100
B157: 154 | C157: 2 | D157: 0.0007672081226 | E157: 100
B158: 155 | C158: 2 | D158: 0.0004603248735 | E158: 100
B159: 156 | C159: 1 | D159: 0.0006904873103 | E159: 100
B160: 157 | C160: 2 | D160: 0.0004142923862 | E160: 100
B161: 158 | C161: 1 | D161: 0.0006214385793 | E161: 100
B162: 159 | C162: 1 | D162: 0.0009321578689 | E162: 100
B163: 160 | C163: 1 | D163: 0.001398236803 | E163: 100
B164: 161 | C164: 1 | D164: 0.002097355205 | E164: 100
B165: 162 | C165: 2 | D165: 0.001258413123 | E165: 100
B166: 163 | C166: 1 | D166: 0.001887619685 | E166: 100
B167: 164 | C167: 2 | D167: 0.001132571811 | E167: 100
B168: 165 | C168: 1 | D168: 0.001698857716 | E168: 100
B169: 166 | C169: 1 | D169: 0.002548286574 | E169: 100
B170: 167 | C170: 2 | D170: 0.001528971944 | E170: 100
B171: 168 | C171: 1 | D171: 0.002293457917 | E171: 100
B172: 169 | C172: 2 | D172: 0.00137607475 | E172: 100
B173: 170 | C173: 2 | D173: 0.00082564485 | E173: 100
B174: 171 | C174: 1 | D174: 0.001238467275 | E174: 100
B175: 172 | C175: 1 | D175: 0.001857700913 | E175: 100
B176: 173 | C176: 1 | D176: 0.002786551369 | E176: 100
B177: 174 | C177: 1 | D177: 0.004179827053 | E177: 100
B178: 175 | C178: 1 | D178: 0.00626974058 | E178: 100
B179: 176 | C179: 1 | D179: 0.00940461087 | E179: 100
B180: 177 | C180: 2 | D180: 0.005642766522 | E180: 100
B181: 178 | C181: 1 | D181: 0.008464149783 | E181: 100
B182: 179 | C182: 2 | D182: 0.00507848987 | E182: 100
B183: 180 | C183: 2 | D183: 0.003047093922 | E183: 100
B184: 181 | C184: 1 | D184: 0.004570640883 | E184: 100
B185: 182 | C185: 1 | D185: 0.006855961324 | E185: 100
B186: 183 | C186: 1 | D186: 0.01028394199 | E186: 100
B187: 184 | C187: 1 | D187: 0.01542591298 | E187: 100
B188: 185 | C188: 1 | D188: 0.02313886947 | E188: 100
B189: 186 | C189: 1 | D189: 0.0347083042 | E189: 100
B190: 187 | C190: 2 | D190: 0.02082498252 | E190: 100
B191: 188 | C191: 1 | D191: 0.03123747378 | E191: 100
B192: 189 | C192: 2 | D192: 0.01874248427 | E192: 100
B193: 190 | C193: 2 | D193: 0.01124549056 | E193: 100
B194: 191 | C194: 1 | D194: 0.01686823584 | E194: 100
B195: 192 | C195: 2 | D195: 0.01012094151 | E195: 100
B196: 193 | C196: 1 | D196: 0.01518141226 | E196: 100
B197: 194 | C197: =RANDBETWEEN(1,2) -> 2 | D197: =IF(C197=1, D196+(D196*$L$4), D196-(D196*$L$5)) -> 0.009108847355 | E197: 100
B198: 195 | C198: 1 | D198: 0.01366327103 | E198: 100
B199: 196 | C199: 1 | D199: 0.02049490655 | E199: 100
B200: 197 | C200: 1 | D200: 0.03074235982 | E200: 100
B201: 198 | C201: 2 | D201: 0.01844541589 | E201: 100
... 2576 more rows

Sheet Kooperation
B2: Runde | C2: Spieler 1 | D2: Spieler 2 | E2: Punkte S1 | F2: Punkte S2 | G2: Punkte gem. | H2: Basis
E3: 100 | F3: 100 | K3: =K4+K5 -> 2774 | R3: =R4+R5 -> 100
B4: 1 | C4: =RANDBETWEEN(1,2) -> 2 | D4: =RANDBETWEEN(1,2) -> 1 | E4: =IF(C4=1, E3+(E3*$O$4), E3-(E3*$O$5)) -> 60 | F4: =IF(D4=1, F3+(F3*$O$4), F3-(F3*$O$5)) -> 150 | G4: =(Tabelle13[[#This Row],[Punkte S1]]+Tabelle13[[#This Row],[Punkte S2]])/2 -> 105 | H4: 100 | J4: Häufigkeit 1 | K4: =COUNTIF($C$4:$C$2777,1) -> 1382 | L4: =K4/K3 -> 0.4981975487 | N4: Gewinnrate bei 1 | O4: 0.5 | Q4: Häufigkeit 1 (nach 100 Runden) | R4: =COUNTIF($C$4:$C$103,1) -> 41 | S4: =R4/R3 -> 0.41
B5: 2 | C5: 1 | D5: 1 | E5: =IF(C5=1, G4+(G4*$O$4), G4-(G4*$O$5)) -> 157.5 | F5: =IF(D5=1, G4+(G4*$O$4), G4-(G4*$O$5)) -> 157.5 | G5: =(Tabelle13[[#This Row],[Punkte S1]]+Tabelle13[[#This Row],[Punkte S2]])/2 -> 157.5 | H5: 100 | J5: Häufigkeit 2 | K5: =COUNTIF($C$4:$C$2777,2) -> 1392 | L5: =K5/K3 -> 0.5018024513 | N5: Verlustrate bei 2 | O5: 0.4 | Q5: Häufigkeit 2 (nach 100 Runden) | R5: =COUNTIF($C$4:$C$103,2) -> 59 | S5: =R5/R3 -> 0.59
B6: 3 | C6: 2 | D6: 1 | E6: =IF(C6=1, G5+(G5*$O$4), G5-(G5*$O$5)) -> 94.5 | F6: =IF(D6=1, G5+(G5*$O$4), G5-(G5*$O$5)) -> 236.25 | G6: =(Tabelle13[[#This Row],[Punkte S1]]+Tabelle13[[#This Row],[Punkte S2]])/2 -> 165.375 | H6: 100
B7: 4 | C7: 1 | D7: 1 | E7: 248.0625 | F7: =IF(D7=1, G6+(G6*$O$4), G6-(G6*$O$5)) -> 248.0625 | G7: =(Tabelle13[[#This Row],[Punkte S1]]+Tabelle13[[#This Row],[Punkte S2]])/2 -> 248.0625 | H7: 100 | J7: Punkte nach 100 Runden | L7: =E103 -> 0.02280830689
B8: 5 | C8: 2 | D8: 1 | E8: 148.8375 | F8: =IF(D8=1, G7+(G7*$O$4), G7-(G7*$O$5)) -> 372.09375 | G8: =(Tabelle13[[#This Row],[Punkte S1]]+Tabelle13[[#This Row],[Punkte S2]])/2 -> 260.465625 | H8: 100
B9: 6 | C9: 2 | D9: 2 | E9: 156.279375 | F9: 156.279375 | G9: =(Tabelle13[[#This Row],[Punkte S1]]+Tabelle13[[#This Row],[Punkte S2]])/2 -> 156.279375 | H9: 100
B10: 7 | C10: 2 | D10: 2 | E10: 93.767625 | F10: 93.767625 | G10: =(Tabelle13[[#This Row],[Punkte S1]]+Tabelle13[[#This Row],[Punkte S2]])/2 -> 93.767625 | H10: 100
B11: 8 | C11: 2 | D11: 1 | E11: 56.260575 | F11: 140.6514375 | G11: =(Tabelle13[[#This Row],[Punkte S1]]+Tabelle13[[#This Row],[Punkte S2]])/2 -> 98.45600625 | H11: 100
B12: 9 | C12: 2 | D12: 2 | E12: 59.07360375 | F12: 59.07360375 | G12: =(Tabelle13[[#This Row],[Punkte S1]]+Tabelle13[[#This Row],[Punkte S2]])/2 -> 59.07360375 | H12: 100
B13: 10 | C13: 1 | D13: 2 | E13: 88.61040562 | F13: 35.44416225 | G13: =(Tabelle13[[#This Row],[Punkte S1]]+Tabelle13[[#This Row],[Punkte S2]])/2 -> 62.02728394 | H13: 100
B14: 11 | C14: 1 | D14: 1 | E14: 93.04092591 | F14: 93.04092591 | G14: =(Tabelle13[[#This Row],[Punkte S1]]+Tabelle13[[#This Row],[Punkte S2]])/2 -> 93.04092591 | H14: 100
B15: 12 | C15: 2 | D15: 1 | E15: 55.82455554 | F15: 139.5613889 | G15: =(Tabelle13[[#This Row],[Punkte S1]]+Tabelle13[[#This Row],[Punkte S2]])/2 -> 97.6929722 | H15: 100
B16: 13 | C16: 1 | D16: 1 | E16: =IF(C16=1, G15+(G15*$O$4), G15-(G15*$O$5)) -> 146.5394583 | F16: 146.5394583 | G16: =(Tabelle13[[#This Row],[Punkte S1]]+Tabelle13[[#This Row],[Punkte S2]])/2 -> 146.5394583 | H16: 100
B17: 14 | C17: 1 | D17: 2 | E17: 219.8091875 | F17: 87.92367498 | G17: =(Tabelle13[[#This Row],[Punkte S1]]+Tabelle13[[#This Row],[Punkte S2]])/2 -> 153.8664312 | H17: 100
B18: 15 | C18: 2 | D18: 1 | E18: =IF(C18=1, G17+(G17*$O$4), G17-(G17*$O$5)) -> 92.31985873 | F18: =IF(D18=1, G17+(G17*$O$4), G17-(G17*$O$5)) -> 230.7996468 | G18: =(Tabelle13[[#This Row],[Punkte S1]]+Tabelle13[[#This Row],[Punkte S2]])/2 -> 161.5597528 | H18: 100
B19: 16 | C19: 2 | D19: 2 | E19: =IF(C19=1, G18+(G18*$O$4), G18-(G18*$O$5)) -> 96.93585167 | F19: 96.93585167 | G19: =(Tabelle13[[#This Row],[Punkte S1]]+Tabelle13[[#This Row],[Punkte S2]])/2 -> 96.93585167 | H19: 100
B20: 17 | C20: 1 | D20: 1 | E20: 145.4037775 | F20: 145.4037775 | G20: =(Tabelle13[[#This Row],[Punkte S1]]+Tabelle13[[#This Row],[Punkte S2]])/2 -> 145.4037775 | H20: 100
B21: 18 | C21: 1 | D21: 2 | E21: 218.1056663 | F21: 87.2422665 | G21: =(Tabelle13[[#This Row],[Punkte S1]]+Tabelle13[[#This Row],[Punkte S2]])/2 -> 152.6739664 | H21: 100
B22: 19 | C22: 1 | D22: 2 | E22: 229.0109496 | F22: 91.60437983 | G22: =(Tabelle13[[#This Row],[Punkte S1]]+Tabelle13[[#This Row],[Punkte S2]])/2 -> 160.3076647 | H22: 100
B23: 20 | C23: 1 | D23: 1 | E23: 240.461497 | F23: 240.461497 | G23: =(Tabelle13[[#This Row],[Punkte S1]]+Tabelle13[[#This Row],[Punkte S2]])/2 -> 240.461497 | H23: 100
B24: 21 | C24: 1 | D24: 2 | E24: 360.6922456 | F24: 144.2768982 | G24: =(Tabelle13[[#This Row],[Punkte S1]]+Tabelle13[[#This Row],[Punkte S2]])/2 -> 252.4845719 | H24: 100
B25: 22 | C25: 2 | D25: 2 | E25: 151.4907431 | F25: 151.4907431 | G25: =(Tabelle13[[#This Row],[Punkte S1]]+Tabelle13[[#This Row],[Punkte S2]])/2 -> 151.4907431 | H25: 100
B26: 23 | C26: 2 | D26: 2 | E26: 90.89444588 | F26: 90.89444588 | G26: =(Tabelle13[[#This Row],[Punkte S1]]+Tabelle13[[#This Row],[Punkte S2]])/2 -> 90.89444588 | H26: 100
B27: 24 | C27: 2 | D27: 2 | E27: 54.53666753 | F27: 54.53666753 | G27: =(Tabelle13[[#This Row],[Punkte S1]]+Tabelle13[[#This Row],[Punkte S2]])/2 -> 54.53666753 | H27: 100
B28: 25 | C28: 2 | D28: 2 | E28: 32.72200052 | F28: 32.72200052 | G28: =(Tabelle13[[#This Row],[Punkte S1]]+Tabelle13[[#This Row],[Punkte S2]])/2 -> 32.72200052 | H28: 100
B29: 26 | C29: 2 | D29: 2 | E29: 19.63320031 | F29: 19.63320031 | G29: =(Tabelle13[[#This Row],[Punkte S1]]+Tabelle13[[#This Row],[Punkte S2]])/2 -> 19.63320031 | H29: 100
B30: 27 | C30: 1 | D30: 2 | E30: 29.44980047 | F30: 11.77992019 | G30: =(Tabelle13[[#This Row],[Punkte S1]]+Tabelle13[[#This Row],[Punkte S2]])/2 -> 20.61486033 | H30: 100
B31: 28 | C31: 2 | D31: 2 | E31: 12.3689162 | F31: 12.3689162 | G31: =(Tabelle13[[#This Row],[Punkte S1]]+Tabelle13[[#This Row],[Punkte S2]])/2 -> 12.3689162 | H31: 100
B32: 29 | C32: 2 | D32: 1 | E32: 7.421349717 | F32: 18.55337429 | G32: =(Tabelle13[[#This Row],[Punkte S1]]+Tabelle13[[#This Row],[Punkte S2]])/2 -> 12.98736201 | H32: 100
B33: 30 | C33: 2 | D33: 2 | E33: 7.792417203 | F33: 7.792417203 | G33: =(Tabelle13[[#This Row],[Punkte S1]]+Tabelle13[[#This Row],[Punkte S2]])/2 -> 7.792417203 | H33: 100
B34: 31 | C34: 1 | D34: 1 | E34: 11.6886258 | F34: 11.6886258 | G34: =(Tabelle13[[#This Row],[Punkte S1]]+Tabelle13[[#This Row],[Punkte S2]])/2 -> 11.6886258 | H34: 100
B35: 32 | C35: 1 | D35: 1 | E35: 17.53293871 | F35: 17.53293871 | G35: =(Tabelle13[[#This Row],[Punkte S1]]+Tabelle13[[#This Row],[Punkte S2]])/2 -> 17.53293871 | H35: 100
B36: 33 | C36: 2 | D36: 2 | E36: 10.51976322 | F36: 10.51976322 | G36: =(Tabelle13[[#This Row],[Punkte S1]]+Tabelle13[[#This Row],[Punkte S2]])/2 -> 10.51976322 | H36: 100
B37: 34 | C37: 1 | D37: 1 | E37: 15.77964484 | F37: 15.77964484 | G37: =(Tabelle13[[#This Row],[Punkte S1]]+Tabelle13[[#This Row],[Punkte S2]])/2 -> 15.77964484 | H37: 100
B38: 35 | C38: 2 | D38: 1 | E38: 9.467786902 | F38: 23.66946725 | G38: =(Tabelle13[[#This Row],[Punkte S1]]+Tabelle13[[#This Row],[Punkte S2]])/2 -> 16.56862708 | H38: 100
B39: 36 | C39: 2 | D39: 2 | E39: 9.941176247 | F39: 9.941176247 | G39: =(Tabelle13[[#This Row],[Punkte S1]]+Tabelle13[[#This Row],[Punkte S2]])/2 -> 9.941176247 | H39: 100
B40: 37 | C40: 2 | D40: 1 | E40: 5.964705748 | F40: 14.91176437 | G40: =(Tabelle13[[#This Row],[Punkte S1]]+Tabelle13[[#This Row],[Punkte S2]])/2 -> 10.43823506 | H40: 100
B41: 38 | C41: 1 | D41: 1 | E41: 15.65735259 | F41: 15.65735259 | G41: =(Tabelle13[[#This Row],[Punkte S1]]+Tabelle13[[#This Row],[Punkte S2]])/2 -> 15.65735259 | H41: 100
B42: 39 | C42: 1 | D42: 1 | E42: 23.48602888 | F42: 23.48602888 | G42: =(Tabelle13[[#This Row],[Punkte S1]]+Tabelle13[[#This Row],[Punkte S2]])/2 -> 23.48602888 | H42: 100
B43: 40 | C43: 1 | D43: 1 | E43: 35.22904333 | F43: 35.22904333 | G43: =(Tabelle13[[#This Row],[Punkte S1]]+Tabelle13[[#This Row],[Punkte S2]])/2 -> 35.22904333 | H43: 100
B44: 41 | C44: 2 | D44: 1 | E44: 21.137426 | F44: 52.84356499 | G44: =(Tabelle13[[#This Row],[Punkte S1]]+Tabelle13[[#This Row],[Punkte S2]])/2 -> 36.99049549 | H44: 100
B45: 42 | C45: 1 | D45: 1 | E45: 55.48574324 | F45: 55.48574324 | G45: =(Tabelle13[[#This Row],[Punkte S1]]+Tabelle13[[#This Row],[Punkte S2]])/2 -> 55.48574324 | H45: 100
B46: 43 | C46: 1 | D46: 2 | E46: 83.22861486 | F46: 33.29144594 | G46: =(Tabelle13[[#This Row],[Punkte S1]]+Tabelle13[[#This Row],[Punkte S2]])/2 -> 58.2600304 | H46: 100
B47: 44 | C47: 2 | D47: 1 | E47: 34.95601824 | F47: 87.3900456 | G47: =(Tabelle13[[#This Row],[Punkte S1]]+Tabelle13[[#This Row],[Punkte S2]])/2 -> 61.17303192 | H47: 100
B48: 45 | C48: 2 | D48: 2 | E48: 36.70381915 | F48: 36.70381915 | G48: =(Tabelle13[[#This Row],[Punkte S1]]+Tabelle13[[#This Row],[Punkte S2]])/2 -> 36.70381915 | H48: 100
B49: 46 | C49: 2 | D49: 2 | E49: 22.02229149 | F49: 22.02229149 | G49: =(Tabelle13[[#This Row],[Punkte S1]]+Tabelle13[[#This Row],[Punkte S2]])/2 -> 22.02229149 | H49: 100
B50: 47 | C50: 1 | D50: 2 | E50: 33.03343724 | F50: 13.21337489 | G50: =(Tabelle13[[#This Row],[Punkte S1]]+Tabelle13[[#This Row],[Punkte S2]])/2 -> 23.12340607 | H50: 100
B51: 48 | C51: 1 | D51: 1 | E51: 34.6851091 | F51: 34.6851091 | G51: =(Tabelle13[[#This Row],[Punkte S1]]+Tabelle13[[#This Row],[Punkte S2]])/2 -> 34.6851091 | H51: 100
B52: 49 | C52: 2 | D52: 1 | E52: 20.81106546 | F52: 52.02766365 | G52: =(Tabelle13[[#This Row],[Punkte S1]]+Tabelle13[[#This Row],[Punkte S2]])/2 -> 36.41936455 | H52: 100
B53: 50 | C53: 2 | D53: 2 | E53: 21.85161873 | F53: 21.85161873 | G53: =(Tabelle13[[#This Row],[Punkte S1]]+Tabelle13[[#This Row],[Punkte S2]])/2 -> 21.85161873 | H53: 100
B54: 51 | C54: 1 | D54: 2 | E54: 32.7774281 | F54: 13.11097124 | G54: =(Tabelle13[[#This Row],[Punkte S1]]+Tabelle13[[#This Row],[Punkte S2]])/2 -> 22.94419967 | H54: 100
B55: 52 | C55: 2 | D55: 2 | E55: 13.7665198 | F55: 13.7665198 | G55: =(Tabelle13[[#This Row],[Punkte S1]]+Tabelle13[[#This Row],[Punkte S2]])/2 -> 13.7665198 | H55: 100
B56: 53 | C56: 2 | D56: 1 | E56: 8.259911881 | F56: 20.6497797 | G56: =(Tabelle13[[#This Row],[Punkte S1]]+Tabelle13[[#This Row],[Punkte S2]])/2 -> 14.45484579 | H56: 100
B57: 54 | C57: 2 | D57: 2 | E57: 8.672907475 | F57: 8.672907475 | G57: =(Tabelle13[[#This Row],[Punkte S1]]+Tabelle13[[#This Row],[Punkte S2]])/2 -> 8.672907475 | H57: 100
B58: 55 | C58: 1 | D58: 2 | E58: 13.00936121 | F58: 5.203744485 | G58: =(Tabelle13[[#This Row],[Punkte S1]]+Tabelle13[[#This Row],[Punkte S2]])/2 -> 9.106552848 | H58: 100
B59: 56 | C59: 2 | D59: 2 | E59: 5.463931709 | F59: 5.463931709 | G59: =(Tabelle13[[#This Row],[Punkte S1]]+Tabelle13[[#This Row],[Punkte S2]])/2 -> 5.463931709 | H59: 100
B60: 57 | C60: 1 | D60: 2 | E60: 8.195897564 | F60: 3.278359025 | G60: =(Tabelle13[[#This Row],[Punkte S1]]+Tabelle13[[#This Row],[Punkte S2]])/2 -> 5.737128294 | H60: 100
B61: 58 | C61: 1 | D61: 1 | E61: 8.605692442 | F61: 8.605692442 | G61: =(Tabelle13[[#This Row],[Punkte S1]]+Tabelle13[[#This Row],[Punkte S2]])/2 -> 8.605692442 | H61: 100
B62: 59 | C62: 2 | D62: 2 | E62: 5.163415465 | F62: 5.163415465 | G62: =(Tabelle13[[#This Row],[Punkte S1]]+Tabelle13[[#This Row],[Punkte S2]])/2 -> 5.163415465 | H62: 100
B63: 60 | C63: 1 | D63: 1 | E63: 7.745123198 | F63: 7.745123198 | G63: =(Tabelle13[[#This Row],[Punkte S1]]+Tabelle13[[#This Row],[Punkte S2]])/2 -> 7.745123198 | H63: 100
B64: 61 | C64: 2 | D64: 2 | E64: 4.647073919 | F64: 4.647073919 | G64: =(Tabelle13[[#This Row],[Punkte S1]]+Tabelle13[[#This Row],[Punkte S2]])/2 -> 4.647073919 | H64: 100
B65: 62 | C65: 1 | D65: 1 | E65: 6.970610878 | F65: 6.970610878 | G65: =(Tabelle13[[#This Row],[Punkte S1]]+Tabelle13[[#This Row],[Punkte S2]])/2 -> 6.970610878 | H65: 100
B66: 63 | C66: 2 | D66: 1 | E66: 4.182366527 | F66: 10.45591632 | G66: =(Tabelle13[[#This Row],[Punkte S1]]+Tabelle13[[#This Row],[Punkte S2]])/2 -> 7.319141422 | H66: 100
B67: 64 | C67: 2 | D67: 1 | E67: 4.391484853 | F67: 10.97871213 | G67: =(Tabelle13[[#This Row],[Punkte S1]]+Tabelle13[[#This Row],[Punkte S2]])/2 -> 7.685098493 | H67: 100
B68: 65 | C68: 2 | D68: =RANDBETWEEN(1,2) -> 2 | E68: 4.611059096 | F68: 4.611059096 | G68: =(Tabelle13[[#This Row],[Punkte S1]]+Tabelle13[[#This Row],[Punkte S2]])/2 -> 4.611059096 | H68: 100
B69: 66 | C69: =RANDBETWEEN(1,2) -> 1 | D69: 1 | E69: 6.916588644 | F69: 6.916588644 | G69: =(Tabelle13[[#This Row],[Punkte S1]]+Tabelle13[[#This Row],[Punkte S2]])/2 -> 6.916588644 | H69: 100
B70: 67 | C70: 2 | D70: 2 | E70: =IF(C70=1, G69+(G69*$O$4), G69-(G69*$O$5)) -> 4.149953186 | F70: 4.149953186 | G70: =(Tabelle13[[#This Row],[Punkte S1]]+Tabelle13[[#This Row],[Punkte S2]])/2 -> 4.149953186 | H70: 100
B71: 68 | C71: 1 | D71: 2 | E71: 6.224929779 | F71: 2.489971912 | G71: =(Tabelle13[[#This Row],[Punkte S1]]+Tabelle13[[#This Row],[Punkte S2]])/2 -> 4.357450845 | H71: 100
B72: 69 | C72: 2 | D72: 2 | E72: 2.614470507 | F72: =IF(D72=1, G71+(G71*$O$4), G71-(G71*$O$5)) -> 2.614470507 | G72: =(Tabelle13[[#This Row],[Punkte S1]]+Tabelle13[[#This Row],[Punkte S2]])/2 -> 2.614470507 | H72: 100
B73: 70 | C73: 1 | D73: 1 | E73: 3.921705761 | F73: 3.921705761 | G73: =(Tabelle13[[#This Row],[Punkte S1]]+Tabelle13[[#This Row],[Punkte S2]])/2 -> 3.921705761 | H73: 100
B74: 71 | C74: 2 | D74: 2 | E74: 2.353023457 | F74: 2.353023457 | G74: =(Tabelle13[[#This Row],[Punkte S1]]+Tabelle13[[#This Row],[Punkte S2]])/2 -> 2.353023457 | H74: 100
B75: 72 | C75: 2 | D75: 2 | E75: 1.411814074 | F75: 1.411814074 | G75: =(Tabelle13[[#This Row],[Punkte S1]]+Tabelle13[[#This Row],[Punkte S2]])/2 -> 1.411814074 | H75: 100
B76: 73 | C76: 2 | D76: 2 | E76: 0.8470884443 | F76: 0.8470884443 | G76: =(Tabelle13[[#This Row],[Punkte S1]]+Tabelle13[[#This Row],[Punkte S2]])/2 -> 0.8470884443 | H76: 100
B77: 74 | C77: 2 | D77: 2 | E77: 0.5082530666 | F77: 0.5082530666 | G77: =(Tabelle13[[#This Row],[Punkte S1]]+Tabelle13[[#This Row],[Punkte S2]])/2 -> 0.5082530666 | H77: 100
B78: 75 | C78: 2 | D78: 2 | E78: 0.30495184 | F78: 0.30495184 | G78: =(Tabelle13[[#This Row],[Punkte S1]]+Tabelle13[[#This Row],[Punkte S2]])/2 -> 0.30495184 | H78: 100
B79: 76 | C79: 2 | D79: 2 | E79: 0.182971104 | F79: 0.182971104 | G79: =(Tabelle13[[#This Row],[Punkte S1]]+Tabelle13[[#This Row],[Punkte S2]])/2 -> 0.182971104 | H79: 100
B80: 77 | C80: 2 | D80: 1 | E80: 0.1097826624 | F80: 0.274456656 | G80: =(Tabelle13[[#This Row],[Punkte S1]]+Tabelle13[[#This Row],[Punkte S2]])/2 -> 0.1921196592 | H80: 100
B81: 78 | C81: 1 | D81: 1 | E81: 0.2881794888 | F81: 0.2881794888 | G81: =(Tabelle13[[#This Row],[Punkte S1]]+Tabelle13[[#This Row],[Punkte S2]])/2 -> 0.2881794888 | H81: 100
B82: 79 | C82: 1 | D82: 1 | E82: 0.4322692332 | F82: 0.4322692332 | G82: =(Tabelle13[[#This Row],[Punkte S1]]+Tabelle13[[#This Row],[Punkte S2]])/2 -> 0.4322692332 | H82: 100
B83: 80 | C83: 1 | D83: 2 | E83: 0.6484038497 | F83: 0.2593615399 | G83: =(Tabelle13[[#This Row],[Punkte S1]]+Tabelle13[[#This Row],[Punkte S2]])/2 -> 0.4538826948 | H83: 100
B84: 81 | C84: 1 | D84: 2 | E84: 0.6808240422 | F84: 0.2723296169 | G84: =(Tabelle13[[#This Row],[Punkte S1]]+Tabelle13[[#This Row],[Punkte S2]])/2 -> 0.4765768295 | H84: 100
B85: 82 | C85: 1 | D85: 1 | E85: 0.7148652443 | F85: 0.7148652443 | G85: =(Tabelle13[[#This Row],[Punkte S1]]+Tabelle13[[#This Row],[Punkte S2]])/2 -> 0.7148652443 | H85: 100
B86: 83 | C86: 2 | D86: 2 | E86: 0.4289191466 | F86: 0.4289191466 | G86: =(Tabelle13[[#This Row],[Punkte S1]]+Tabelle13[[#This Row],[Punkte S2]])/2 -> 0.4289191466 | H86: 100
B87: 84 | C87: 1 | D87: 1 | E87: 0.6433787199 | F87: 0.6433787199 | G87: =(Tabelle13[[#This Row],[Punkte S1]]+Tabelle13[[#This Row],[Punkte S2]])/2 -> 0.6433787199 | H87: 100
B88: 85 | C88: 2 | D88: 2 | E88: 0.3860272319 | F88: 0.3860272319 | G88: =(Tabelle13[[#This Row],[Punkte S1]]+Tabelle13[[#This Row],[Punkte S2]])/2 -> 0.3860272319 | H88: 100
B89: 86 | C89: 2 | D89: 2 | E89: 0.2316163392 | F89: 0.2316163392 | G89: =(Tabelle13[[#This Row],[Punkte S1]]+Tabelle13[[#This Row],[Punkte S2]])/2 -> 0.2316163392 | H89: 100
B90: 87 | C90: 2 | D90: 2 | E90: 0.1389698035 | F90: 0.1389698035 | G90: =(Tabelle13[[#This Row],[Punkte S1]]+Tabelle13[[#This Row],[Punkte S2]])/2 -> 0.1389698035 | H90: 100
B91: 88 | C91: 2 | D91: 2 | E91: 0.0833818821 | F91: 0.0833818821 | G91: =(Tabelle13[[#This Row],[Punkte S1]]+Tabelle13[[#This Row],[Punkte S2]])/2 -> 0.0833818821 | H91: 100
B92: 89 | C92: 2 | D92: 1 | E92: 0.05002912926 | F92: 0.1250728231 | G92: =(Tabelle13[[#This Row],[Punkte S1]]+Tabelle13[[#This Row],[Punkte S2]])/2 -> 0.0875509762 | H92: 100
B93: 90 | C93: 2 | D93: 2 | E93: 0.05253058572 | F93: 0.05253058572 | G93: =(Tabelle13[[#This Row],[Punkte S1]]+Tabelle13[[#This Row],[Punkte S2]])/2 -> 0.05253058572 | H93: 100
B94: 91 | C94: 1 | D94: 2 | E94: 0.07879587858 | F94: 0.03151835143 | G94: =(Tabelle13[[#This Row],[Punkte S1]]+Tabelle13[[#This Row],[Punkte S2]])/2 -> 0.05515711501 | H94: 100
B95: 92 | C95: 1 | D95: 2 | E95: 0.08273567251 | F95: 0.033094269 | G95: =(Tabelle13[[#This Row],[Punkte S1]]+Tabelle13[[#This Row],[Punkte S2]])/2 -> 0.05791497076 | H95: 100
B96: 93 | C96: 1 | D96: 1 | E96: 0.08687245614 | F96: 0.08687245614 | G96: =(Tabelle13[[#This Row],[Punkte S1]]+Tabelle13[[#This Row],[Punkte S2]])/2 -> 0.08687245614 | H96: 100
B97: 94 | C97: 2 | D97: 1 | E97: 0.05212347368 | F97: 0.1303086842 | G97: =(Tabelle13[[#This Row],[Punkte S1]]+Tabelle13[[#This Row],[Punkte S2]])/2 -> 0.09121607894 | H97: 100
B98: 95 | C98: 1 | D98: 2 | E98: 0.1368241184 | F98: 0.05472964737 | G98: =(Tabelle13[[#This Row],[Punkte S1]]+Tabelle13[[#This Row],[Punkte S2]])/2 -> 0.09577688289 | H98: 100
B99: 96 | C99: 2 | D99: 2 | E99: 0.05746612973 | F99: 0.05746612973 | G99: =(Tabelle13[[#This Row],[Punkte S1]]+Tabelle13[[#This Row],[Punkte S2]])/2 -> 0.05746612973 | H99: 100
B100: 97 | C100: 2 | D100: 1 | E100: 0.03447967784 | F100: 0.0861991946 | G100: =(Tabelle13[[#This Row],[Punkte S1]]+Tabelle13[[#This Row],[Punkte S2]])/2 -> 0.06033943622 | H100: 100
B101: 98 | C101: 2 | D101: 1 | E101: 0.03620366173 | F101: 0.09050915433 | G101: =(Tabelle13[[#This Row],[Punkte S1]]+Tabelle13[[#This Row],[Punkte S2]])/2 -> 0.06335640803 | H101: 100
B102: 99 | C102: 2 | D102: 2 | E102: 0.03801384482 | F102: 0.03801384482 | G102: =(Tabelle13[[#This Row],[Punkte S1]]+Tabelle13[[#This Row],[Punkte S2]])/2 -> 0.03801384482 | H102: 100
B103: 100 | C103: 2 | D103: 1 | E103: 0.02280830689 | F103: 0.05702076723 | G103: =(Tabelle13[[#This Row],[Punkte S1]]+Tabelle13[[#This Row],[Punkte S2]])/2 -> 0.03991453706 | H103: 100
B104: 101 | C104: 2 | D104: 2 | E104: 0.02394872224 | F104: 0.02394872224 | G104: =(Tabelle13[[#This Row],[Punkte S1]]+Tabelle13[[#This Row],[Punkte S2]])/2 -> 0.02394872224 | H104: 100
B105: 102 | C105: 2 | D105: 1 | E105: 0.01436923334 | F105: 0.03592308335 | G105: =(Tabelle13[[#This Row],[Punkte S1]]+Tabelle13[[#This Row],[Punkte S2]])/2 -> 0.02514615835 | H105: 100
B106: 103 | C106: 2 | D106: 1 | E106: 0.01508769501 | F106: 0.03771923752 | G106: =(Tabelle13[[#This Row],[Punkte S1]]+Tabelle13[[#This Row],[Punkte S2]])/2 -> 0.02640346627 | H106: 100
B107: 104 | C107: 1 | D107: 2 | E107: 0.0396051994 | F107: 0.01584207976 | G107: =(Tabelle13[[#This Row],[Punkte S1]]+Tabelle13[[#This Row],[Punkte S2]])/2 -> 0.02772363958 | H107: 100
B108: 105 | C108: 1 | D108: 2 | E108: 0.04158545937 | F108: 0.01663418375 | G108: =(Tabelle13[[#This Row],[Punkte S1]]+Tabelle13[[#This Row],[Punkte S2]])/2 -> 0.02910982156 | H108: 100
B109: 106 | C109: 2 | D109: 2 | E109: 0.01746589293 | F109: 0.01746589293 | G109: =(Tabelle13[[#This Row],[Punkte S1]]+Tabelle13[[#This Row],[Punkte S2]])/2 -> 0.01746589293 | H109: 100
B110: 107 | C110: 1 | D110: 2 | E110: 0.0261988394 | F110: 0.01047953576 | G110: =(Tabelle13[[#This Row],[Punkte S1]]+Tabelle13[[#This Row],[Punkte S2]])/2 -> 0.01833918758 | H110: 100
B111: 108 | C111: 2 | D111: 1 | E111: 0.01100351255 | F111: 0.02750878137 | G111: =(Tabelle13[[#This Row],[Punkte S1]]+Tabelle13[[#This Row],[Punkte S2]])/2 -> 0.01925614696 | H111: 100
B112: 109 | C112: 2 | D112: 1 | E112: 0.01155368818 | F112: 0.02888422044 | G112: =(Tabelle13[[#This Row],[Punkte S1]]+Tabelle13[[#This Row],[Punkte S2]])/2 -> 0.02021895431 | H112: 100
B113: 110 | C113: 1 | D113: 2 | E113: 0.03032843146 | F113: 0.01213137259 | G113: =(Tabelle13[[#This Row],[Punkte S1]]+Tabelle13[[#This Row],[Punkte S2]])/2 -> 0.02122990202 | H113: 100
B114: 111 | C114: 2 | D114: 1 | E114: 0.01273794121 | F114: 0.03184485304 | G114: =(Tabelle13[[#This Row],[Punkte S1]]+Tabelle13[[#This Row],[Punkte S2]])/2 -> 0.02229139713 | H114: 100
B115: 112 | C115: 2 | D115: 1 | E115: 0.01337483828 | F115: 0.03343709569 | G115: =(Tabelle13[[#This Row],[Punkte S1]]+Tabelle13[[#This Row],[Punkte S2]])/2 -> 0.02340596698 | H115: 100
B116: 113 | C116: 2 | D116: 2 | E116: 0.01404358019 | F116: 0.01404358019 | G116: =(Tabelle13[[#This Row],[Punkte S1]]+Tabelle13[[#This Row],[Punkte S2]])/2 -> 0.01404358019 | H116: 100
B117: 114 | C117: 2 | D117: 1 | E117: 0.008426148113 | F117: 0.02106537028 | G117: =(Tabelle13[[#This Row],[Punkte S1]]+Tabelle13[[#This Row],[Punkte S2]])/2 -> 0.0147457592 | H117: 100
B118: 115 | C118: 2 | D118: 2 | E118: 0.008847455519 | F118: 0.008847455519 | G118: =(Tabelle13[[#This Row],[Punkte S1]]+Tabelle13[[#This Row],[Punkte S2]])/2 -> 0.008847455519 | H118: 100
B119: 116 | C119: 1 | D119: 1 | E119: 0.01327118328 | F119: 0.01327118328 | G119: =(Tabelle13[[#This Row],[Punkte S1]]+Tabelle13[[#This Row],[Punkte S2]])/2 -> 0.01327118328 | H119: 100
B120: 117 | C120: 1 | D120: 1 | E120: 0.01990677492 | F120: 0.01990677492 | G120: =(Tabelle13[[#This Row],[Punkte S1]]+Tabelle13[[#This Row],[Punkte S2]])/2 -> 0.01990677492 | H120: 100
B121: 118 | C121: 2 | D121: 2 | E121: 0.01194406495 | F121: 0.01194406495 | G121: =(Tabelle13[[#This Row],[Punkte S1]]+Tabelle13[[#This Row],[Punkte S2]])/2 -> 0.01194406495 | H121: 100
B122: 119 | C122: 1 | D122: 2 | E122: 0.01791609743 | F122: 0.00716643897 | G122: =(Tabelle13[[#This Row],[Punkte S1]]+Tabelle13[[#This Row],[Punkte S2]])/2 -> 0.0125412682 | H122: 100
B123: 120 | C123: 1 | D123: 1 | E123: 0.0188119023 | F123: 0.0188119023 | G123: =(Tabelle13[[#This Row],[Punkte S1]]+Tabelle13[[#This Row],[Punkte S2]])/2 -> 0.0188119023 | H123: 100
B124: 121 | C124: 2 | D124: 1 | E124: 0.01128714138 | F124: 0.02821785345 | G124: =(Tabelle13[[#This Row],[Punkte S1]]+Tabelle13[[#This Row],[Punkte S2]])/2 -> 0.01975249741 | H124: 100
B125: 122 | C125: 2 | D125: 1 | E125: 0.01185149845 | F125: 0.02962874612 | G125: =(Tabelle13[[#This Row],[Punkte S1]]+Tabelle13[[#This Row],[Punkte S2]])/2 -> 0.02074012228 | H125: 100
B126: 123 | C126: 2 | D126: 2 | E126: 0.01244407337 | F126: 0.01244407337 | G126: =(Tabelle13[[#This Row],[Punkte S1]]+Tabelle13[[#This Row],[Punkte S2]])/2 -> 0.01244407337 | H126: 100
B127: 124 | C127: 1 | D127: 2 | E127: 0.01866611005 | F127: 0.007466444022 | G127: =(Tabelle13[[#This Row],[Punkte S1]]+Tabelle13[[#This Row],[Punkte S2]])/2 -> 0.01306627704 | H127: 100
B128: 125 | C128: 2 | D128: 1 | E128: 0.007839766223 | F128: 0.01959941556 | G128: =(Tabelle13[[#This Row],[Punkte S1]]+Tabelle13[[#This Row],[Punkte S2]])/2 -> 0.01371959089 | H128: 100
B129: 126 | C129: 1 | D129: 2 | E129: 0.02057938633 | F129: 0.008231754534 | G129: =(Tabelle13[[#This Row],[Punkte S1]]+Tabelle13[[#This Row],[Punkte S2]])/2 -> 0.01440557043 | H129: 100
B130: 127 | C130: 2 | D130: 1 | E130: 0.008643342261 | F130: 0.02160835565 | G130: =(Tabelle13[[#This Row],[Punkte S1]]+Tabelle13[[#This Row],[Punkte S2]])/2 -> 0.01512584896 | H130: 100
B131: 128 | C131: 1 | D131: 2 | E131: 0.02268877343 | F131: 0.009075509374 | G131: =(Tabelle13[[#This Row],[Punkte S1]]+Tabelle13[[#This Row],[Punkte S2]])/2 -> 0.0158821414 | H131: 100
B132: 129 | C132: 2 | D132: =RANDBETWEEN(1,2) -> 1 | E132: 0.009529284842 | F132: 0.02382321211 | G132: =(Tabelle13[[#This Row],[Punkte S1]]+Tabelle13[[#This Row],[Punkte S2]])/2 -> 0.01667624847 | H132: 100
B133: 130 | C133: =RANDBETWEEN(1,2) -> 1 | D133: 2 | E133: 0.02501437271 | F133: 0.01000574908 | G133: =(Tabelle13[[#This Row],[Punkte S1]]+Tabelle13[[#This Row],[Punkte S2]])/2 -> 0.0175100609 | H133: 100
B134: 131 | C134: 1 | D134: 1 | E134: =IF(C134=1, G133+(G133*$O$4), G133-(G133*$O$5)) -> 0.02626509135 | F134: 0.02626509135 | G134: =(Tabelle13[[#This Row],[Punkte S1]]+Tabelle13[[#This Row],[Punkte S2]])/2 -> 0.02626509135 | H134: 100
B135: 132 | C135: 1 | D135: 1 | E135: 0.03939763702 | F135: 0.03939763702 | G135: =(Tabelle13[[#This Row],[Punkte S1]]+Tabelle13[[#This Row],[Punkte S2]])/2 -> 0.03939763702 | H135: 100
B136: 133 | C136: 2 | D136: 1 | E136: 0.02363858221 | F136: =IF(D136=1, G135+(G135*$O$4), G135-(G135*$O$5)) -> 0.05909645553 | G136: =(Tabelle13[[#This Row],[Punkte S1]]+Tabelle13[[#This Row],[Punkte S2]])/2 -> 0.04136751887 | H136: 100
B137: 134 | C137: 2 | D137: 1 | E137: 0.02482051132 | F137: 0.06205127831 | G137: =(Tabelle13[[#This Row],[Punkte S1]]+Tabelle13[[#This Row],[Punkte S2]])/2 -> 0.04343589481 | H137: 100
B138: 135 | C138: 2 | D138: 2 | E138: 0.02606153689 | F138: 0.02606153689 | G138: =(Tabelle13[[#This Row],[Punkte S1]]+Tabelle13[[#This Row],[Punkte S2]])/2 -> 0.02606153689 | H138: 100
B139: 136 | C139: 1 | D139: 2 | E139: 0.03909230533 | F139: 0.01563692213 | G139: =(Tabelle13[[#This Row],[Punkte S1]]+Tabelle13[[#This Row],[Punkte S2]])/2 -> 0.02736461373 | H139: 100
B140: 137 | C140: 1 | D140: 2 | E140: 0.0410469206 | F140: 0.01641876824 | G140: =(Tabelle13[[#This Row],[Punkte S1]]+Tabelle13[[#This Row],[Punkte S2]])/2 -> 0.02873284442 | H140: 100
B141: 138 | C141: 2 | D141: 1 | E141: 0.01723970665 | F141: 0.04309926663 | G141: =(Tabelle13[[#This Row],[Punkte S1]]+Tabelle13[[#This Row],[Punkte S2]])/2 -> 0.03016948664 | H141: 100
B142: 139 | C142: 2 | D142: 2 | E142: 0.01810169198 | F142: 0.01810169198 | G142: =(Tabelle13[[#This Row],[Punkte S1]]+Tabelle13[[#This Row],[Punkte S2]])/2 -> 0.01810169198 | H142: 100
B143: 140 | C143: 2 | D143: 1 | E143: 0.01086101519 | F143: 0.02715253798 | G143: =(Tabelle13[[#This Row],[Punkte S1]]+Tabelle13[[#This Row],[Punkte S2]])/2 -> 0.01900677658 | H143: 100
B144: 141 | C144: 1 | D144: 2 | E144: 0.02851016488 | F144: 0.01140406595 | G144: =(Tabelle13[[#This Row],[Punkte S1]]+Tabelle13[[#This Row],[Punkte S2]])/2 -> 0.01995711541 | H144: 100
B145: 142 | C145: 2 | D145: 1 | E145: 0.01197426925 | F145: 0.02993567312 | G145: =(Tabelle13[[#This Row],[Punkte S1]]+Tabelle13[[#This Row],[Punkte S2]])/2 -> 0.02095497118 | H145: 100
B146: 143 | C146: 1 | D146: 1 | E146: 0.03143245678 | F146: 0.03143245678 | G146: =(Tabelle13[[#This Row],[Punkte S1]]+Tabelle13[[#This Row],[Punkte S2]])/2 -> 0.03143245678 | H146: 100
B147: 144 | C147: 2 | D147: 1 | E147: 0.01885947407 | F147: 0.04714868516 | G147: =(Tabelle13[[#This Row],[Punkte S1]]+Tabelle13[[#This Row],[Punkte S2]])/2 -> 0.03300407961 | H147: 100
B148: 145 | C148: 1 | D148: 2 | E148: 0.04950611942 | F148: 0.01980244777 | G148: =(Tabelle13[[#This Row],[Punkte S1]]+Tabelle13[[#This Row],[Punkte S2]])/2 -> 0.0346542836 | H148: 100
B149: 146 | C149: 2 | D149: 1 | E149: 0.02079257016 | F149: 0.05198142539 | G149: =(Tabelle13[[#This Row],[Punkte S1]]+Tabelle13[[#This Row],[Punkte S2]])/2 -> 0.03638699777 | H149: 100
B150: 147 | C150: 1 | D150: 1 | E150: 0.05458049666 | F150: 0.05458049666 | G150: =(Tabelle13[[#This Row],[Punkte S1]]+Tabelle13[[#This Row],[Punkte S2]])/2 -> 0.05458049666 | H150: 100
B151: 148 | C151: 1 | D151: 2 | E151: 0.08187074499 | F151: 0.032748298 | G151: =(Tabelle13[[#This Row],[Punkte S1]]+Tabelle13[[#This Row],[Punkte S2]])/2 -> 0.0573095215 | H151: 100
B152: 149 | C152: 1 | D152: 2 | E152: 0.08596428224 | F152: 0.0343857129 | G152: =(Tabelle13[[#This Row],[Punkte S1]]+Tabelle13[[#This Row],[Punkte S2]])/2 -> 0.06017499757 | H152: 100
B153: 150 | C153: 2 | D153: 2 | E153: 0.03610499854 | F153: 0.03610499854 | G153: =(Tabelle13[[#This Row],[Punkte S1]]+Tabelle13[[#This Row],[Punkte S2]])/2 -> 0.03610499854 | H153: 100
B154: 151 | C154: 1 | D154: 2 | E154: 0.05415749781 | F154: 0.02166299913 | G154: =(Tabelle13[[#This Row],[Punkte S1]]+Tabelle13[[#This Row],[Punkte S2]])/2 -> 0.03791024847 | H154: 100
B155: 152 | C155: 2 | D155: 1 | E155: 0.02274614908 | F155: 0.0568653727 | G155: =(Tabelle13[[#This Row],[Punkte S1]]+Tabelle13[[#This Row],[Punkte S2]])/2 -> 0.03980576089 | H155: 100
B156: 153 | C156: 1 | D156: 2 | E156: 0.05970864134 | F156: 0.02388345654 | G156: =(Tabelle13[[#This Row],[Punkte S1]]+Tabelle13[[#This Row],[Punkte S2]])/2 -> 0.04179604894 | H156: 100
B157: 154 | C157: 2 | D157: 1 | E157: 0.02507762936 | F157: 0.06269407341 | G157: =(Tabelle13[[#This Row],[Punkte S1]]+Tabelle13[[#This Row],[Punkte S2]])/2 -> 0.04388585138 | H157: 100
B158: 155 | C158: 2 | D158: 1 | E158: 0.02633151083 | F158: 0.06582877708 | G158: =(Tabelle13[[#This Row],[Punkte S1]]+Tabelle13[[#This Row],[Punkte S2]])/2 -> 0.04608014395 | H158: 100
B159: 156 | C159: 2 | D159: 1 | E159: 0.02764808637 | F159: 0.06912021593 | G159: =(Tabelle13[[#This Row],[Punkte S1]]+Tabelle13[[#This Row],[Punkte S2]])/2 -> 0.04838415115 | H159: 100
B160: 157 | C160: 2 | D160: 2 | E160: 0.02903049069 | F160: 0.02903049069 | G160: =(Tabelle13[[#This Row],[Punkte S1]]+Tabelle13[[#This Row],[Punkte S2]])/2 -> 0.02903049069 | H160: 100
B161: 158 | C161: 1 | D161: 2 | E161: 0.04354573604 | F161: 0.01741829441 | G161: =(Tabelle13[[#This Row],[Punkte S1]]+Tabelle13[[#This Row],[Punkte S2]])/2 -> 0.03048201523 | H161: 100
B162: 159 | C162: 1 | D162: 2 | E162: 0.04572302284 | F162: 0.01828920914 | G162: =(Tabelle13[[#This Row],[Punkte S1]]+Tabelle13[[#This Row],[Punkte S2]])/2 -> 0.03200611599 | H162: 100
B163: 160 | C163: 2 | D163: 2 | E163: 0.01920366959 | F163: 0.01920366959 | G163: =(Tabelle13[[#This Row],[Punkte S1]]+Tabelle13[[#This Row],[Punkte S2]])/2 -> 0.01920366959 | H163: 100
B164: 161 | C164: 2 | D164: 2 | E164: 0.01152220176 | F164: 0.01152220176 | G164: =(Tabelle13[[#This Row],[Punkte S1]]+Tabelle13[[#This Row],[Punkte S2]])/2 -> 0.01152220176 | H164: 100
B165: 162 | C165: 2 | D165: 1 | E165: 0.006913321053 | F165: 0.01728330263 | G165: =(Tabelle13[[#This Row],[Punkte S1]]+Tabelle13[[#This Row],[Punkte S2]])/2 -> 0.01209831184 | H165: 100
B166: 163 | C166: 1 | D166: 1 | E166: 0.01814746776 | F166: 0.01814746776 | G166: =(Tabelle13[[#This Row],[Punkte S1]]+Tabelle13[[#This Row],[Punkte S2]])/2 -> 0.01814746776 | H166: 100
B167: 164 | C167: 2 | D167: 1 | E167: 0.01088848066 | F167: 0.02722120165 | G167: =(Tabelle13[[#This Row],[Punkte S1]]+Tabelle13[[#This Row],[Punkte S2]])/2 -> 0.01905484115 | H167: 100
B168: 165 | C168: 1 | D168: 2 | E168: 0.02858226173 | F168: 0.01143290469 | G168: =(Tabelle13[[#This Row],[Punkte S1]]+Tabelle13[[#This Row],[Punkte S2]])/2 -> 0.02000758321 | H168: 100
B169: 166 | C169: 1 | D169: 2 | E169: 0.03001137482 | F169: 0.01200454993 | G169: =(Tabelle13[[#This Row],[Punkte S1]]+Tabelle13[[#This Row],[Punkte S2]])/2 -> 0.02100796237 | H169: 100
B170: 167 | C170: 1 | D170: 1 | E170: 0.03151194356 | F170: 0.03151194356 | G170: =(Tabelle13[[#This Row],[Punkte S1]]+Tabelle13[[#This Row],[Punkte S2]])/2 -> 0.03151194356 | H170: 100
B171: 168 | C171: 1 | D171: 1 | E171: 0.04726791533 | F171: 0.04726791533 | G171: =(Tabelle13[[#This Row],[Punkte S1]]+Tabelle13[[#This Row],[Punkte S2]])/2 -> 0.04726791533 | H171: 100
B172: 169 | C172: 2 | D172: 2 | E172: 0.0283607492 | F172: 0.0283607492 | G172: =(Tabelle13[[#This Row],[Punkte S1]]+Tabelle13[[#This Row],[Punkte S2]])/2 -> 0.0283607492 | H172: 100
B173: 170 | C173: 1 | D173: 2 | E173: 0.0425411238 | F173: 0.01701644952 | G173: =(Tabelle13[[#This Row],[Punkte S1]]+Tabelle13[[#This Row],[Punkte S2]])/2 -> 0.02977878666 | H173: 100
B174: 171 | C174: 2 | D174: 1 | E174: 0.017867272 | F174: 0.04466817999 | G174: =(Tabelle13[[#This Row],[Punkte S1]]+Tabelle13[[#This Row],[Punkte S2]])/2 -> 0.03126772599 | H174: 100
B175: 172 | C175: 2 | D175: 1 | E175: 0.0187606356 | F175: 0.04690158899 | G175: =(Tabelle13[[#This Row],[Punkte S1]]+Tabelle13[[#This Row],[Punkte S2]])/2 -> 0.03283111229 | H175: 100
B176: 173 | C176: 1 | D176: 1 | E176: 0.04924666844 | F176: 0.04924666844 | G176: =(Tabelle13[[#This Row],[Punkte S1]]+Tabelle13[[#This Row],[Punkte S2]])/2 -> 0.04924666844 | H176: 100
B177: 174 | C177: 2 | D177: 2 | E177: 0.02954800106 | F177: 0.02954800106 | G177: =(Tabelle13[[#This Row],[Punkte S1]]+Tabelle13[[#This Row],[Punkte S2]])/2 -> 0.02954800106 | H177: 100
B178: 175 | C178: 2 | D178: 1 | E178: 0.01772880064 | F178: 0.0443220016 | G178: =(Tabelle13[[#This Row],[Punkte S1]]+Tabelle13[[#This Row],[Punkte S2]])/2 -> 0.03102540112 | H178: 100
B179: 176 | C179: 1 | D179: 2 | E179: 0.04653810168 | F179: 0.01861524067 | G179: =(Tabelle13[[#This Row],[Punkte S1]]+Tabelle13[[#This Row],[Punkte S2]])/2 -> 0.03257667117 | H179: 100
B180: 177 | C180: 1 | D180: 1 | E180: 0.04886500676 | F180: 0.04886500676 | G180: =(Tabelle13[[#This Row],[Punkte S1]]+Tabelle13[[#This Row],[Punkte S2]])/2 -> 0.04886500676 | H180: 100
B181: 178 | C181: 2 | D181: 1 | E181: 0.02931900406 | F181: 0.07329751014 | G181: =(Tabelle13[[#This Row],[Punkte S1]]+Tabelle13[[#This Row],[Punkte S2]])/2 -> 0.0513082571 | H181: 100
B182: 179 | C182: 1 | D182: 2 | E182: 0.07696238565 | F182: 0.03078495426 | G182: =(Tabelle13[[#This Row],[Punkte S1]]+Tabelle13[[#This Row],[Punkte S2]])/2 -> 0.05387366995 | H182: 100
B183: 180 | C183: 1 | D183: 1 | E183: 0.08081050493 | F183: 0.08081050493 | G183: =(Tabelle13[[#This Row],[Punkte S1]]+Tabelle13[[#This Row],[Punkte S2]])/2 -> 0.08081050493 | H183: 100
B184: 181 | C184: 2 | D184: 1 | E184: 0.04848630296 | F184: 0.1212157574 | G184: =(Tabelle13[[#This Row],[Punkte S1]]+Tabelle13[[#This Row],[Punkte S2]])/2 -> 0.08485103017 | H184: 100
B185: 182 | C185: 1 | D185: 2 | E185: 0.1272765453 | F185: 0.0509106181 | G185: =(Tabelle13[[#This Row],[Punkte S1]]+Tabelle13[[#This Row],[Punkte S2]])/2 -> 0.08909358168 | H185: 100
B186: 183 | C186: 1 | D186: 2 | E186: 0.1336403725 | F186: 0.05345614901 | G186: =(Tabelle13[[#This Row],[Punkte S1]]+Tabelle13[[#This Row],[Punkte S2]])/2 -> 0.09354826077 | H186: 100
B187: 184 | C187: 1 | D187: 1 | E187: 0.1403223912 | F187: 0.1403223912 | G187: =(Tabelle13[[#This Row],[Punkte S1]]+Tabelle13[[#This Row],[Punkte S2]])/2 -> 0.1403223912 | H187: 100
B188: 185 | C188: 2 | D188: 1 | E188: 0.08419343469 | F188: 0.2104835867 | G188: =(Tabelle13[[#This Row],[Punkte S1]]+Tabelle13[[#This Row],[Punkte S2]])/2 -> 0.1473385107 | H188: 100
B189: 186 | C189: 2 | D189: 1 | E189: 0.08840310642 | F189: 0.2210077661 | G189: =(Tabelle13[[#This Row],[Punkte S1]]+Tabelle13[[#This Row],[Punkte S2]])/2 -> 0.1547054362 | H189: 100
B190: 187 | C190: 2 | D190: 2 | E190: 0.09282326175 | F190: 0.09282326175 | G190: =(Tabelle13[[#This Row],[Punkte S1]]+Tabelle13[[#This Row],[Punkte S2]])/2 -> 0.09282326175 | H190: 100
B191: 188 | C191: 1 | D191: 2 | E191: 0.1392348926 | F191: 0.05569395705 | G191: =(Tabelle13[[#This Row],[Punkte S1]]+Tabelle13[[#This Row],[Punkte S2]])/2 -> 0.09746442483 | H191: 100
B192: 189 | C192: 2 | D192: 1 | E192: 0.0584786549 | F192: 0.1461966373 | G192: =(Tabelle13[[#This Row],[Punkte S1]]+Tabelle13[[#This Row],[Punkte S2]])/2 -> 0.1023376461 | H192: 100
B193: 190 | C193: 1 | D193: 2 | E193: 0.1535064691 | F193: 0.06140258765 | G193: =(Tabelle13[[#This Row],[Punkte S1]]+Tabelle13[[#This Row],[Punkte S2]])/2 -> 0.1074545284 | H193: 100
B194: 191 | C194: 1 | D194: 2 | E194: 0.1611817926 | F194: 0.06447271703 | G194: =(Tabelle13[[#This Row],[Punkte S1]]+Tabelle13[[#This Row],[Punkte S2]])/2 -> 0.1128272548 | H194: 100
B195: 192 | C195: 2 | D195: 1 | E195: 0.06769635288 | F195: 0.1692408822 | G195: =(Tabelle13[[#This Row],[Punkte S1]]+Tabelle13[[#This Row],[Punkte S2]])/2 -> 0.1184686175 | H195: 100
B196: 193 | C196: 1 | D196: =RANDBETWEEN(1,2) -> 1 | E196: 0.1777029263 | F196: 0.1777029263 | G196: =(Tabelle13[[#This Row],[Punkte S1]]+Tabelle13[[#This Row],[Punkte S2]])/2 -> 0.1777029263 | H196: 100
B197: 194 | C197: =RANDBETWEEN(1,2) -> 1 | D197: 2 | E197: 0.2665543895 | F197: 0.1066217558 | G197: =(Tabelle13[[#This Row],[Punkte S1]]+Tabelle13[[#This Row],[Punkte S2]])/2 -> 0.1865880726 | H197: 100
B198: 195 | C198: 2 | D198: 2 | E198: =IF(C198=1, G197+(G197*$O$4), G197-(G197*$O$5)) -> 0.1119528436 | F198: 0.1119528436 | G198: =(Tabelle13[[#This Row],[Punkte S1]]+Tabelle13[[#This Row],[Punkte S2]])/2 -> 0.1119528436 | H198: 100
B199: 196 | C199: 2 | D199: 1 | E199: 0.06717170614 | F199: 0.1679292654 | G199: =(Tabelle13[[#This Row],[Punkte S1]]+Tabelle13[[#This Row],[Punkte S2]])/2 -> 0.1175504858 | H199: 100
B200: 197 | C200: 1 | D200: 1 | E200: 0.1763257286 | F200: =IF(D200=1, G199+(G199*$O$4), G199-(G199*$O$5)) -> 0.1763257286 | G200: =(Tabelle13[[#This Row],[Punkte S1]]+Tabelle13[[#This Row],[Punkte S2]])/2 -> 0.1763257286 | H200: 100
B201: 198 | C201: 2 | D201: 1 | E201: 0.1057954372 | F201: 0.2644885929 | G201: =(Tabelle13[[#This Row],[Punkte S1]]+Tabelle13[[#This Row],[Punkte S2]])/2 -> 0.1851420151 | H201: 100
... 2576 more rows

Sheet 2 Spieler
A1: Spieler 1 | B1: Spieler 2 | C1: Wahrscheinlichkeit | D1: Faktor Spieler 1 | E1: Faktor Spieler 2 | F1: Gesamtfaktor | G1: Neues Kapital je Spieler | I1: Zeitmittelwert
A2: Kopf | B2: Kopf | C2: 0.25 | D2: 1.5 | E2: 1.5 | F2: =D2+E2 -> 3 | G2: =F2/2 -> 1.5 | I2: =G2^C2*G3^C3*G4^C4*G5^C5 -> 0.9980568435
A3: Kopf | B3: Zahl | C3: 0.25 | D3: 1.5 | E3: 0.6 | F3: =D3+E3 -> 2.1 | G3: =F3/2 -> 1.05
A4: Zahl | B4: Kopf | C4: 0.25 | D4: 0.6 | E4: 1.5 | F4: 2.1 | G4: 1.05
A5: Zahl | B5: Zahl | C5: 0.25 | D5: 0.6 | E5: 0.6 | F5: 1.2 | G5: 0.6
A8: Simulation 2 Runden
A9: Pfad | B9: Runde 1 | C9: Runde 2 | D9: Gesamtfaktor | F9: Gewinnwahrscheinlichkeit
A10: 1 | B10: Kopf-Kopf | C10: Kopf-Kopf | D10: 2.25 | F10: =COUNTIF($D$10:$D$25,"> 1")/COUNT(D10:D25) -> 0.5625
A11: 2 | B11: Kopf-Kopf | C11: Kopf-Zahl | D11: 1.575
A12: 3 | B12: Kopf-Kopf | C12: Zahl-Kopf | D12: 1.575
A13: 4 | B13: Kopf-Kopf | C13: Zahl-Zahl | D13: 0.9
A14: 5 | B14: Kopf-Zahl | C14: Kopf-Kopf | D14: 1.575
A15: 6 | B15: Kopf-Zahl | C15: Kopf-Zahl | D15: 1.1025
A16: 7 | B16: Kopf-Zahl | C16: Zahl-Kopf | D16: 1.1025
A17: 8 | B17: Kopf-Zahl | C17: Zahl-Zahl | D17: 0.63
A18: 9 | B18: Zahl-Kopf | C18: Kopf-Kopf | D18: 1.575
A19: 10 | B19: Zahl-Kopf | C19: Kopf-Zahl | D19: 1.1025
A20: 11 | B20: Zahl-Kopf | C20: Zahl-Kopf | D20: 1.1025
A21: 12 | B21: Zahl-Kopf | C21: Zahl-Zahl | D21: 0.63
A22: 13 | B22: Zahl-Zahl | C22: Kopf-Kopf | D22: 0.9
A23: 14 | B23: Zahl-Zahl | C23: Kopf-Zahl | D23: 0.63
A24: 15 | B24: Zahl-Zahl | C24: Zahl-Kopf | D24: 0.63
A25: 16 | B25: Zahl-Zahl | C25: Zahl-Zahl | D25: 0.36

Sheet 3 Spieler
A1: Spieler 1 | B1: Spieler 2 | C1: Spieler 3 | D1: Wahrscheinlichkeit | E1: Faktor Spieler 1 | F1: Faktor Spieler 2 | G1: Faktor Spieler 3 | H1: Gesamtfaktor | I1: Neues Kapital je Spieler | K1: Zeitmittelwert
A2: Kopf | B2: Kopf | C2: Kopf | D2: 0.125 | E2: 1.5 | F2: 1.5 | G2: 1.5 | H2: =E2+F2+G2 -> 4.5 | I2: =H2/3 -> 1.5 | K2: =I2^D2*I3^D3*I4^D4*I5^D5*I6^D6*I7^D7*I8^D8*I9^D9 -> 1.015814065
A3: Kopf | B3: Kopf | C3: Zahl | D3: 0.125 | E3: 1.5 | F3: 1.5 | G3: 0.6 | H3: =E3+F3+G3 -> 3.6 | I3: =H3/3 -> 1.2
A4: Kopf | B4: Zahl | C4: Kopf | D4: 0.125 | E4: 1.5 | F4: 0.6 | G4: 1.5 | H4: 3.6 | I4: 1.2
A5: Kopf | B5: Zahl | C5: Zahl | D5: 0.125 | E5: 1.5 | F5: 0.6 | G5: 0.6 | H5: 2.7 | I5: 0.9
A6: Zahl | B6: Kopf | C6: Kopf | D6: 0.125 | E6: 0.6 | F6: 1.5 | G6: 1.5 | H6: 3.6 | I6: 1.2
A7: Zahl | B7: Zahl | C7: Kopf | D7: 0.125 | E7: 0.6 | F7: 0.6 | G7: 1.5 | H7: 2.7 | I7: 0.9
A8: Zahl | B8: Kopf | C8: Zahl | D8: 0.125 | E8: 0.6 | F8: 1.5 | G8: 0.6 | H8: 2.7 | I8: 0.9
A9: Zahl | B9: Zahl | C9: Zahl | D9: 0.125 | E9: 0.6 | F9: 0.6 | G9: 0.6 | H9: 1.8 | I9: 0.6
A13: Simulation 2 Runden
A14: Pfad | B14: Runde 1 | C14: Runde 2 | D14: Gesamtfaktor | F14: Gewinnwahrscheinlichkeit
A15: 1 | B15: KKK | C15: KKK | D15: 2.25 | F15: =COUNTIF($D$15:$D$78,"> 1")/COUNT(D15:D78) -> 0.625
A16: 2 | B16: KKK | C16: KKZ | D16: 1.8
A17: 3 | B17: KKK | C17: KZK | D17: 1.8
A18: 4 | B18: KKK | C18: ZKK | D18: 1.8
A19: 5 | B19: KKK | C19: KZZ | D19: 1.35
A20: 6 | B20: KKK | C20: ZKZ | D20: 1.35
A21: 7 | B21: KKK | C21: ZZK | D21: 1.35
A22: 8 | B22: KKK | C22: ZZZ | D22: 0.9
A23: 9 | B23: KKZ | C23: KKK | D23: 1.8
A24: 10 | B24: KKZ | C24: KKZ | D24: 1.44
A25: 11 | B25: KKZ | C25: KZK | D25: 1.44
A26: 12 | B26: KKZ | C26: ZKK | D26: 1.44
A27: 13 | B27: KKZ | C27: KZZ | D27: 1.08
A28: 14 | B28: KKZ | C28: ZKZ | D28: 1.08
A29: 15 | B29: KKZ | C29: ZZK | D29: 1.08
A30: 16 | B30: KKZ | C30: ZZZ | D30: 0.72
A31: 17 | B31: KZK | C31: KKK | D31: 1.8
A32: 18 | B32: KZK | C32: KKZ | D32: 1.44
A33: 19 | B33: KZK | C33: KZK | D33: 1.44
A34: 20 | B34: KZK | C34: ZKK | D34: 1.44
A35: 21 | B35: KZK | C35: KZZ | D35: 1.08
A36: 22 | B36: KZK | C36: ZKZ | D36: 1.08
A37: 23 | B37: KZK | C37: ZZK | D37: 1.08
A38: 24 | B38: KZK | C38: ZZZ | D38: 0.72
A39: 25 | B39: ZKK | C39: KKK | D39: 1.8
A40: 26 | B40: ZKK | C40: KKZ | D40: 1.44
A41: 27 | B41: ZKK | C41: KZK | D41: 1.44
A42: 28 | B42: ZKK | C42: ZKK | D42: 1.44
A43: 29 | B43: ZKK | C43: KZZ | D43: 1.08
A44: 30 | B44: ZKK | C44: ZKZ | D44: 1.08
A45: 31 | B45: ZKK | C45: ZZK | D45: 1.08
A46: 32 | B46: ZKK | C46: ZZZ | D46: 0.72
A47: 33 | B47: KZZ | C47: KKK | D47: 1.35
A48: 34 | B48: KZZ | C48: KKZ | D48: 1.08
A49: 35 | B49: KZZ | C49: KZK | D49: 1.08
A50: 36 | B50: KZZ | C50: ZKK | D50: 1.08
A51: 37 | B51: KZZ | C51: KZZ | D51: 0.81
A52: 38 | B52: KZZ | C52: ZKZ | D52: 0.81
A53: 39 | B53: KZZ | C53: ZZK | D53: 0.81
A54: 40 | B54: KZZ | C54: ZZZ | D54: 0.54
A55: 41 | B55: ZKZ | C55: KKK | D55: 1.35
A56: 42 | B56: ZKZ | C56: KKZ | D56: 1.08
A57: 43 | B57: ZKZ | C57: KZK | D57: 1.08
A58: 44 | B58: ZKZ | C58: ZKK | D58: 1.08
A59: 45 | B59: ZKZ | C59: KZZ | D59: 0.81
A60: 46 | B60: ZKZ | C60: ZKZ | D60: 0.81
A61: 47 | B61: ZKZ | C61: ZZK | D61: 0.81
A62: 48 | B62: ZKZ | C62: ZZZ | D62: 0.54
A63: 49 | B63: ZZK | C63: KKK | D63: 1.35
A64: 50 | B64: ZZK | C64: KKZ | D64: 1.08
A65: 51 | B65: ZZK | C65: KZK | D65: 1.08
A66: 52 | B66: ZZK | C66: ZKK | D66: 1.08
A67: 53 | B67: ZZK | C67: KZZ | D67: 0.81
A68: 54 | B68: ZZK | C68: ZKZ | D68: 0.81
A69: 55 | B69: ZZK | C69: ZZK | D69: 0.81
A70: 56 | B70: ZZK | C70: ZZZ | D70: 0.54
A71: 57 | B71: ZZZ | C71: KKK | D71: 0.9
A72: 58 | B72: ZZZ | C72: KKZ | D72: 0.72
A73: 59 | B73: ZZZ | C73: KZK | D73: 0.72
A74: 60 | B74: ZZZ | C74: ZKK | D74: 0.72
A75: 61 | B75: ZZZ | C75: KZZ | D75: 0.54
A76: 62 | B76: ZZZ | C76: ZKZ | D76: 0.54
A77: 63 | B77: ZZZ | C77: ZZK | D77: 0.54
A78: 64 | B78: ZZZ | C78: ZZZ | D78: 0.36
